[Event "Early-Titled-Tuesday-Blitz-April-23-2024"]
[Site "Chess.com"]
[Date "2024.04.23"]
[Round "9"]
[White "DonkyDonkyDonkey"]
[Black "Martial2008"]
[Result "1/2-1/2"]
[WhiteElo "2913"]
[BlackElo "2697"]
[TimeControl "180+1"]
[EndTime "9:50:06 PDT"]
[Termination "Game drawn by repetition"]

1. e4 {[%clk 0:03:00.9]} 1... e5 {[%clk 0:02:52.9]} 2. Nf3 {[%clk 0:03:00.6]}
2... Nc6 {[%clk 0:02:52.9]} 3. Nc3 {[%clk 0:03:00.4]} 3... Nf6 {[%clk
0:02:52.9]} 4. h3 {[%clk 0:03:01.2]} 4... d5 {[%clk 0:02:48]} 5. exd5 {[%clk
0:03:02.1]} 5... Nxd5 {[%clk 0:02:47.7]} 6. Bb5 {[%clk 0:03:02.9]} 6... Nxc3
{[%clk 0:02:45.7]} 7. bxc3 {[%clk 0:03:03.8]} 7... Bd6 {[%clk 0:02:45.8]} 8. d4
{[%clk 0:03:04.1]} 8... Bd7 {[%clk 0:02:45.9]} 9. O-O {[%clk 0:03:04.2]} 9...
O-O {[%clk 0:02:43.4]} 10. Bg5 {[%clk 0:02:52.9]} 10... Qe8 {[%clk 0:02:40.8]}
11. Re1 {[%clk 0:02:51.3]} 11... f6 {[%clk 0:02:31.4]} 12. Bh4 {[%clk
0:02:23.3]} 12... Nxd4 {[%clk 0:02:08.8]} 13. Nxd4 {[%clk 0:02:02.3]} 13... Bxb5
{[%clk 0:02:07.4]} 14. Nf5 {[%clk 0:02:03]} 14... Qg6 {[%clk 0:01:55.1]} 15.
Nxd6 {[%clk 0:02:02.3]} 15... cxd6 {[%clk 0:01:56]} 16. Qxd6 {[%clk 0:02:01.4]}
16... Bc6 {[%clk 0:01:56.1]} 17. Bg3 {[%clk 0:01:59.6]} 17... Qxc2 {[%clk
0:01:54.9]} 18. Rec1 {[%clk 0:01:55.5]} 18... Qe4 {[%clk 0:01:53]} 19. f3 {[%clk
0:01:52.2]} 19... Qc4 {[%clk 0:01:53.1]} 20. Qb4 {[%clk 0:01:47.8]} 20... Qxb4
{[%clk 0:01:30.7]} 21. cxb4 {[%clk 0:01:48.7]} 21... Rfd8 {[%clk 0:01:28.7]} 22.
a4 {[%clk 0:01:47.9]} 22... a6 {[%clk 0:01:28.1]} 23. Rc2 {[%clk 0:01:45]} 23...
Kf7 {[%clk 0:01:26.9]} 24. Bf2 {[%clk 0:01:44.7]} 24... Rac8 {[%clk 0:01:21.4]}
25. Rac1 {[%clk 0:01:43.7]} 25... Bd7 {[%clk 0:01:19.8]} 26. Rc7 {[%clk
0:01:43]} 26... Kg6 {[%clk 0:01:13.7]} 27. Rxc8 {[%clk 0:01:12.6]} 27... Rxc8
{[%clk 0:01:13.9]} 28. Rxc8 {[%clk 0:01:11.8]} 28... Bxc8 {[%clk 0:01:14.8]} 29.
a5 {[%clk 0:01:12.1]} 29... Kf7 {[%clk 0:01:13.2]} 30. Bc5 {[%clk 0:01:12.5]}
30... Ke6 {[%clk 0:01:12.9]} 31. Kf2 {[%clk 0:01:13.2]} 31... Kd5 {[%clk
0:01:12.2]} 32. Ke3 {[%clk 0:01:13.7]} 32... g5 {[%clk 0:01:10.3]} 33. Be7
{[%clk 0:01:12.6]} 33... Ke6 {[%clk 0:01:10.3]} 34. Bd8 {[%clk 0:01:12.5]} 34...
h5 {[%clk 0:01:10]} 35. g3 {[%clk 0:01:05.4]} 35... Bd7 {[%clk 0:01:03.8]} 36.
h4 {[%clk 0:01:03.7]} 36... gxh4 {[%clk 0:00:54.6]} 37. gxh4 {[%clk 0:01:04.6]}
37... Kf5 {[%clk 0:00:53.5]} 38. Be7 {[%clk 0:01:03]} 38... Bb5 {[%clk
0:00:51.9]} 39. Bd8 {[%clk 0:01:02.8]} 39... Bc6 {[%clk 0:00:51.9]} 40. Be7
{[%clk 0:01:03.1]} 40... e4 {[%clk 0:00:52.2]} 41. fxe4+ {[%clk 0:00:45.7]}
41... Bxe4 {[%clk 0:00:53.1]} 42. Bxf6 {[%clk 0:00:45]} 42... Bc6 {[%clk
0:00:35.9]} 43. Bd8 {[%clk 0:00:34.2]} 43... Bb5 {[%clk 0:00:33]} 44. Kd4 {[%clk
0:00:34.3]} 44... Bc6 {[%clk 0:00:31.1]} 45. Kc5 {[%clk 0:00:34.9]} 45... Bg2
{[%clk 0:00:30.5]} 46. b5 {[%clk 0:00:33.4]} 46... axb5 {[%clk 0:00:30.2]} 47.
Kxb5 {[%clk 0:00:34.3]} 47... Ke6 {[%clk 0:00:30.5]} 48. Kb6 {[%clk 0:00:33.3]}
48... Kd7 {[%clk 0:00:30.5]} 49. Bf6 {[%clk 0:00:33.4]} 49... Kc8 {[%clk
0:00:30]} 50. Be5 {[%clk 0:00:33.8]} 50... Bf3 {[%clk 0:00:29.9]} 51. Bf4 {[%clk
0:00:34]} 51... Bg4 {[%clk 0:00:30.2]} 52. Bg3 {[%clk 0:00:34.3]} 52... Bf3
{[%clk 0:00:30.4]} 53. Kc5 {[%clk 0:00:34.7]} 53... Kd7 {[%clk 0:00:29]} 54. Kd4
{[%clk 0:00:35.1]} 54... Ke6 {[%clk 0:00:27.4]} 55. Ke3 {[%clk 0:00:34]} 55...
Bd1 {[%clk 0:00:26.4]} 56. Kf4 {[%clk 0:00:34.9]} 56... Kd5 {[%clk 0:00:25.3]}
57. Kf5 {[%clk 0:00:35.4]} 57... Kc6 {[%clk 0:00:24.8]} 58. Bf2 {[%clk
0:00:35.3]} 58... Kb5 {[%clk 0:00:25]} 59. Bb6 {[%clk 0:00:36]} 59... Ka6 {[%clk
0:00:25.6]} 60. Ke5 {[%clk 0:00:36.4]} 60... Bg4 {[%clk 0:00:25.7]} 61. Kd6
{[%clk 0:00:36.8]} 61... Bd1 {[%clk 0:00:26.6]} 62. Kc7 {[%clk 0:00:37.4]} 62...
Bg4 {[%clk 0:00:27.1]} 63. Kd6 {[%clk 0:00:38.3]} 63... Bd1 {[%clk 0:00:27.1]}
64. Kc5 {[%clk 0:00:39.2]} 64... Bg4 {[%clk 0:00:28]} 65. Kb4 {[%clk 0:00:40]}
65... Bd1 {[%clk 0:00:28.4]} 66. Bd8 {[%clk 0:00:40.1]} 66... Bg4 {[%clk
0:00:29.3]} 67. Kc3 {[%clk 0:00:41]} 67... Bd1 {[%clk 0:00:29.3]} 68. Kd3 {[%clk
0:00:41.6]} 68... Bg4 {[%clk 0:00:30.2]} 69. Kd2 {[%clk 0:00:42.2]} 69... Bf5
{[%clk 0:00:30.6]} 70. Ke1 {[%clk 0:00:42.7]} 70... Bg4 {[%clk 0:00:31.5]} 71.
Kf2 {[%clk 0:00:43.2]} 71... Kb5 {[%clk 0:00:32.2]} 72. Ke3 {[%clk 0:00:44.1]}
72... Ka6 {[%clk 0:00:33.1]} 73. Kf4 {[%clk 0:00:44.6]} 73... Kb5 {[%clk
0:00:33.8]} 74. Ke5 {[%clk 0:00:45.1]} 74... Ka6 {[%clk 0:00:34.7]} 75. Kd5
{[%clk 0:00:45.7]} 75... Kb5 {[%clk 0:00:35.4]} 76. Kd4 {[%clk 0:00:46.4]} 76...
Ka6 {[%clk 0:00:36.3]} 77. Kc5 {[%clk 0:00:47.1]} 77... Bd1 {[%clk 0:00:36.1]}
78. Kc4 {[%clk 0:00:47.8]} 78... Bg4 {[%clk 0:00:37]} 79. Kd4 {[%clk 0:00:48.4]}
79... Kb5 {[%clk 0:00:37.2]} 80. Kd5 {[%clk 0:00:49.1]} 80... Ka6 {[%clk
0:00:38.1]} 81. Kc5 {[%clk 0:00:49.9]} 81... Bd1 {[%clk 0:00:38.2]} 82. Kd6
{[%clk 0:00:49.1]} 82... Bg4 {[%clk 0:00:39.1]} 83. Ke5 {[%clk 0:00:49.8]} 83...
Kb5 {[%clk 0:00:35.7]} 84. Ke4 {[%clk 0:00:49.8]} 84... Ka6 {[%clk 0:00:36.6]}
85. Kd4 {[%clk 0:00:50.3]} 85... Kb5 {[%clk 0:00:37.2]} 86. Ke3 {[%clk
0:00:51.1]} 86... Ka6 {[%clk 0:00:38.1]} 87. Kd2 {[%clk 0:00:51.8]} 87... Kb5
{[%clk 0:00:36.7]} 88. Kc3 {[%clk 0:00:52.2]} 88... Ka6 {[%clk 0:00:37.6]} 89.
Kb4 {[%clk 0:00:52.7]} 89... Bf3 {[%clk 0:00:36.7]} 90. Kc4 {[%clk 0:00:53]}
90... Bg4 {[%clk 0:00:37.6]} 91. Kc5 {[%clk 0:00:53.5]} 1/2-1/2

[Event "Early-Titled-Tuesday-Blitz-April-23-2024"]
[Site "Chess.com"]
[Date "2024.04.23"]
[Round "9"]
[White "Mackster23"]
[Black "lamomiajunior"]
[Result "0-1"]
[WhiteElo "2590"]
[BlackElo "2740"]
[TimeControl "180+1"]
[EndTime "9:50:10 PDT"]
[Termination "lamomiajunior won by resignation"]

1. e4 {[%clk 0:03:00.9]} 1... c5 {[%clk 0:02:59.7]} 2. Nf3 {[%clk 0:02:59.5]}
2... d6 {[%clk 0:02:59.9]} 3. d4 {[%clk 0:02:56.9]} 3... cxd4 {[%clk 0:03:00.8]}
4. Nxd4 {[%clk 0:02:57.5]} 4... Nf6 {[%clk 0:03:01.3]} 5. Nc3 {[%clk 0:02:58]}
5... a6 {[%clk 0:03:01.9]} 6. Be3 {[%clk 0:02:58.1]} 6... e6 {[%clk 0:02:58.1]}
7. g4 {[%clk 0:02:57.3]} 7... Nc6 {[%clk 0:02:49.5]} 8. g5 {[%clk 0:02:55.1]}
8... Nd7 {[%clk 0:02:49.3]} 9. Rg1 {[%clk 0:02:53.4]} 9... Be7 {[%clk
0:02:46.6]} 10. Rg3 {[%clk 0:02:46.9]} 10... Qc7 {[%clk 0:02:45.6]} 11. f4
{[%clk 0:02:44.6]} 11... b5 {[%clk 0:02:44.4]} 12. a3 {[%clk 0:02:42.6]} 12...
Bb7 {[%clk 0:02:44.3]} 13. Qg4 {[%clk 0:02:35.3]} 13... Nc5 {[%clk 0:02:32.6]}
14. Bg2 {[%clk 0:01:52]} 14... b4 {[%clk 0:02:22.5]} 15. axb4 {[%clk 0:01:45.5]}
15... Nxb4 {[%clk 0:02:23.4]} 16. Qe2 {[%clk 0:01:27.2]} 16... Rc8 {[%clk
0:02:15.1]} 17. Rd1 {[%clk 0:01:13.8]} 17... Qa5 {[%clk 0:01:55.9]} 18. Kf1
{[%clk 0:01:08.8]} 18... Na2 {[%clk 0:01:46]} 19. Bd2 {[%clk 0:00:58.6]} 19...
Nxc3 {[%clk 0:01:42.6]} 20. Bxc3 {[%clk 0:00:59.5]} 20... Qb6 {[%clk 0:01:42.7]}
21. b3 {[%clk 0:00:27.7]} 21... h6 {[%clk 0:01:14.2]} 22. g6 {[%clk 0:00:15.5]}
22... O-O {[%clk 0:01:10.6]} 23. gxf7+ {[%clk 0:00:12.5]} 23... Rxf7 {[%clk
0:01:11.5]} 24. b4 {[%clk 0:00:07.2]} 24... Nxe4 {[%clk 0:01:03.3]} 25. Bxe4
{[%clk 0:00:04.1]} 25... Rxf4+ {[%clk 0:01:03.8]} 26. Bf3 {[%clk 0:00:04]} 26...
Rxc3 {[%clk 0:00:37.8]} 27. Qxe6+ {[%clk 0:00:03.7]} 27... Kf8 {[%clk
0:00:34.4]} 28. Kg2 {[%clk 0:00:02.3]} 28... Bxf3+ {[%clk 0:00:22.5]} 29. Nxf3
{[%clk 0:00:03.2]} 29... Qb7 {[%clk 0:00:21.5]} 30. Rf1 {[%clk 0:00:02.7]} 30...
Rf6 {[%clk 0:00:15.2]} 31. Qg4 {[%clk 0:00:02.5]} 31... Bd8 {[%clk 0:00:13.1]}
32. Rf2 {[%clk 0:00:02.8]} 32... Bb6 {[%clk 0:00:12.7]} 33. Re2 {[%clk
0:00:02.7]} 33... Re3 {[%clk 0:00:09.1]} 34. Rxe3 {[%clk 0:00:02.7]} 34... Bxe3
{[%clk 0:00:10]} 35. h4 {[%clk 0:00:03]} 35... Bf4 {[%clk 0:00:10.5]} 36. Rh3
{[%clk 0:00:03.1]} 36... Qe4 {[%clk 0:00:10.5]} 37. Kf1 {[%clk 0:00:01.8]} 37...
Qc4+ {[%clk 0:00:09.7]} 38. Kg2 {[%clk 0:00:02.1]} 38... Qxc2+ {[%clk
0:00:09.9]} 39. Kh1 {[%clk 0:00:02.7]} 39... Qd1+ {[%clk 0:00:09.9]} 40. Kg2
{[%clk 0:00:02.4]} 40... Qe2+ {[%clk 0:00:10.5]} 41. Kh1 {[%clk 0:00:03]} 41...
Kg8 {[%clk 0:00:09.8]} 42. Qc8+ {[%clk 0:00:02.8]} 42... Kh7 {[%clk 0:00:10]}
43. Qc3 {[%clk 0:00:03.1]} 43... Be3 {[%clk 0:00:09.7]} 44. Qxe3 {[%clk
0:00:01.9]} 44... Qxe3 {[%clk 0:00:09.3]} 45. Ng5+ {[%clk 0:00:02.8]} 45... hxg5
{[%clk 0:00:07.6]} 46. hxg5+ {[%clk 0:00:03.7]} 46... Kg6 {[%clk 0:00:07.2]} 47.
Rxe3 {[%clk 0:00:03.9]} 47... Kxg5 {[%clk 0:00:07.1]} 48. Rd3 {[%clk 0:00:04.3]}
48... Kf5 {[%clk 0:00:07.1]} 49. Rd5+ {[%clk 0:00:04.7]} 49... Ke4 {[%clk
0:00:07.2]} 50. Ra5 {[%clk 0:00:05.6]} 50... d5 {[%clk 0:00:07.9]} 51. b5 {[%clk
0:00:06.2]} 51... axb5 {[%clk 0:00:08]} 52. Rxb5 {[%clk 0:00:07.1]} 52... d4
{[%clk 0:00:08.5]} 53. Kg2 {[%clk 0:00:07.5]} 53... d3 {[%clk 0:00:08.5]} 54.
Rb8 {[%clk 0:00:06.8]} 54... Ke3 {[%clk 0:00:08.4]} 55. Re8+ {[%clk 0:00:06.6]}
55... Kd2 {[%clk 0:00:08.9]} 56. Re7 {[%clk 0:00:07.2]} 56... g5 {[%clk
0:00:08.6]} 57. Re5 {[%clk 0:00:07.1]} 57... g4 {[%clk 0:00:08.7]} 58. Re4
{[%clk 0:00:07.7]} 58... Kc3 {[%clk 0:00:07.5]} 59. Rxg4 {[%clk 0:00:06.1]}
59... d2 {[%clk 0:00:07.7]} 0-1

[Event "Early-Titled-Tuesday-Blitz-April-23-2024"]
[Site "Chess.com"]
[Date "2024.04.23"]
[Round "9"]
[White "Chesstiger64"]
[Black "toninhojit"]
[Result "0-1"]
[WhiteElo "2369"]
[BlackElo "2555"]
[TimeControl "180+1"]
[EndTime "9:50:10 PDT"]
[Termination "toninhojit won on time"]

1. Nf3 {[%clk 0:02:54.1]} 1... c5 {[%clk 0:02:59.3]} 2. g3 {[%clk 0:02:53.8]}
2... Nc6 {[%clk 0:02:59.7]} 3. Bg2 {[%clk 0:02:54.3]} 3... e5 {[%clk 0:02:59.8]}
4. d3 {[%clk 0:02:53.1]} 4... g6 {[%clk 0:02:59]} 5. O-O {[%clk 0:02:53.5]} 5...
Bg7 {[%clk 0:02:59.5]} 6. c4 {[%clk 0:02:53.7]} 6... Nge7 {[%clk 0:03:00.2]} 7.
Nc3 {[%clk 0:02:54.1]} 7... O-O {[%clk 0:03:01]} 8. Ne1 {[%clk 0:02:54.2]} 8...
f5 {[%clk 0:03:00.7]} 9. Nc2 {[%clk 0:02:54.6]} 9... f4 {[%clk 0:03:01.3]} 10.
a3 {[%clk 0:02:53.5]} 10... d6 {[%clk 0:03:01.8]} 11. Rb1 {[%clk 0:02:50.9]}
11... Rb8 {[%clk 0:03:01.9]} 12. b4 {[%clk 0:02:50.4]} 12... g5 {[%clk
0:03:00.3]} 13. e3 {[%clk 0:02:42.4]} 13... h6 {[%clk 0:02:57.4]} 14. exf4
{[%clk 0:02:41.4]} 14... exf4 {[%clk 0:02:57.3]} 15. Nd5 {[%clk 0:02:34]} 15...
Nxd5 {[%clk 0:02:55.4]} 16. Bxd5+ {[%clk 0:02:32.1]} 16... Kh8 {[%clk
0:02:54.3]} 17. bxc5 {[%clk 0:02:24.8]} 17... Bh3 {[%clk 0:02:54.2]} 18. Re1
{[%clk 0:02:02.5]} 18... dxc5 {[%clk 0:02:31.7]} 19. Qh5 {[%clk 0:01:59]} 19...
Bf5 {[%clk 0:02:32]} 20. Bb2 {[%clk 0:01:56.3]} 20... Nd4 {[%clk 0:02:27.3]} 21.
Bxd4 {[%clk 0:01:55.1]} 21... cxd4 {[%clk 0:02:27.6]} 22. Rxb7 {[%clk
0:01:31.2]} 22... Rxb7 {[%clk 0:02:25.8]} 23. Bxb7 {[%clk 0:01:31.6]} 23... Qf6
{[%clk 0:02:14.9]} 24. Be4 {[%clk 0:01:29.6]} 24... Bxe4 {[%clk 0:02:12.7]} 25.
Rxe4 {[%clk 0:01:23.9]} 25... fxg3 {[%clk 0:02:13.1]} 26. f3 {[%clk 0:01:16.8]}
26... Qxf3 {[%clk 0:02:03]} 27. Qxf3 {[%clk 0:01:15.6]} 27... Rxf3 {[%clk
0:02:03.9]} 28. Ne1 {[%clk 0:01:14.2]} 28... gxh2+ {[%clk 0:02:00.2]} 29. Kxh2
{[%clk 0:01:13.8]} 29... Rf2+ {[%clk 0:01:57]} 30. Kg3 {[%clk 0:01:10.7]} 30...
Ra2 {[%clk 0:01:53.8]} 31. Kf3 {[%clk 0:00:55.1]} 31... Rxa3 {[%clk 0:01:54.1]}
32. Re8+ {[%clk 0:00:55.2]} 32... Kh7 {[%clk 0:01:54.1]} 33. Ke4 {[%clk
0:00:55.7]} 33... a5 {[%clk 0:01:49.7]} 34. Nf3 {[%clk 0:00:55.6]} 34... a4
{[%clk 0:01:48.7]} 35. Re7 {[%clk 0:00:54.6]} 35... Kg6 {[%clk 0:01:47.9]} 36.
Re6+ {[%clk 0:00:52.7]} 36... Kf7 {[%clk 0:01:43.6]} 37. Ra6 {[%clk 0:00:50.3]}
37... g4 {[%clk 0:01:38.1]} 38. Nh4 {[%clk 0:00:47.1]} 38... g3 {[%clk
0:01:31.2]} 39. Nf5 {[%clk 0:00:46.4]} 39... Bf6 {[%clk 0:01:17.7]} 40. Nxg3
{[%clk 0:00:46.2]} 40... Ra1 {[%clk 0:01:14.8]} 41. Nf5 {[%clk 0:00:33.3]} 41...
Re1+ {[%clk 0:01:14.9]} 42. Kf3 {[%clk 0:00:29.3]} 42... Rf1+ {[%clk 0:01:15.4]}
43. Ke4 {[%clk 0:00:29.3]} 43... Re1+ {[%clk 0:01:13.2]} 44. Kf3 {[%clk
0:00:29.5]} 44... h5 {[%clk 0:01:07.4]} 45. Ng3 {[%clk 0:00:22.9]} 45... Re3+
{[%clk 0:01:05.4]} 46. Kg2 {[%clk 0:00:18.8]} 46... Rxd3 {[%clk 0:01:01.6]} 47.
Ne4 {[%clk 0:00:18.1]} 47... Be5 {[%clk 0:00:55.9]} 48. Ng5+ {[%clk 0:00:16]}
48... Kf8 {[%clk 0:00:51.9]} 49. Ne6+ {[%clk 0:00:12.6]} 49... Ke7 {[%clk
0:00:50.7]} 50. Ng5 {[%clk 0:00:12.4]} 50... a3 {[%clk 0:00:47.9]} 51. Re6+
{[%clk 0:00:12.4]} 51... Kd7 {[%clk 0:00:46]} 52. Rxe5 {[%clk 0:00:13.3]} 52...
h4 {[%clk 0:00:39.3]} 53. Ra5 {[%clk 0:00:12.4]} 53... a2 {[%clk 0:00:38.1]} 54.
Rxa2 {[%clk 0:00:11.5]} 54... Rg3+ {[%clk 0:00:38.3]} 55. Kh2 {[%clk 0:00:11]}
55... Rxg5 {[%clk 0:00:38.7]} 56. Rd2 {[%clk 0:00:10.3]} 56... Rg4 {[%clk
0:00:38.8]} 57. Kh3 {[%clk 0:00:10.7]} 57... Re4 {[%clk 0:00:39.1]} 58. Kg2
{[%clk 0:00:10.5]} 58... Kc6 {[%clk 0:00:39.6]} 59. Kf3 {[%clk 0:00:10.8]} 59...
Re3+ {[%clk 0:00:40]} 60. Kf4 {[%clk 0:00:10.9]} 60... Kc5 {[%clk 0:00:40.6]}
61. Rh2 {[%clk 0:00:08.4]} 61... h3 {[%clk 0:00:41.1]} 62. Rc2 {[%clk
0:00:07.6]} 62... Rc3 {[%clk 0:00:39.4]} 63. Ra2 {[%clk 0:00:06.8]} 63... Kxc4
{[%clk 0:00:39.5]} 64. Ra8 {[%clk 0:00:06.9]} 64... h2 {[%clk 0:00:38.2]} 65.
Rh8 {[%clk 0:00:05.3]} 65... Rc2 {[%clk 0:00:38.7]} 66. Ke4 {[%clk 0:00:02.2]}
66... Re2+ {[%clk 0:00:38.7]} 67. Kf3 {[%clk 0:00:02.2]} 67... d3 {[%clk
0:00:34.8]} 0-1

[Event "Early-Titled-Tuesday-Blitz-April-23-2024"]
[Site "Chess.com"]
[Date "2024.04.23"]
[Round "9"]
[White "Meri-Arabidze"]
[Black "Makswolf200817"]
[Result "0-1"]
[WhiteElo "2660"]
[BlackElo "2816"]
[TimeControl "180+1"]
[EndTime "9:50:15 PDT"]
[Termination "Makswolf200817 won on time"]

1. Nf3 {[%clk 0:02:56.1]} 1... d5 {[%clk 0:02:59.6]} 2. c4 {[%clk 0:02:56]} 2...
e6 {[%clk 0:02:59.1]} 3. g3 {[%clk 0:02:55.8]} 3... Nf6 {[%clk 0:02:59.7]} 4.
Bg2 {[%clk 0:02:56.3]} 4... dxc4 {[%clk 0:03:00.3]} 5. Qa4+ {[%clk 0:02:55.3]}
5... Nbd7 {[%clk 0:03:00.3]} 6. Qxc4 {[%clk 0:02:55.3]} 6... a6 {[%clk 0:03:01]}
7. Qb3 {[%clk 0:02:48.8]} 7... c5 {[%clk 0:02:55]} 8. O-O {[%clk 0:02:47.9]}
8... Qc7 {[%clk 0:02:27.6]} 9. a4 {[%clk 0:02:37.7]} 9... b6 {[%clk 0:02:23.3]}
10. Na3 {[%clk 0:02:29.8]} 10... Bb7 {[%clk 0:02:21.7]} 11. Nc4 {[%clk
0:02:29.7]} 11... Be7 {[%clk 0:02:16.6]} 12. d3 {[%clk 0:02:29.9]} 12... Nd5
{[%clk 0:02:15.2]} 13. Bd2 {[%clk 0:02:26.7]} 13... O-O {[%clk 0:02:14.6]} 14.
Rfc1 {[%clk 0:02:21.1]} 14... Bc6 {[%clk 0:02:07.4]} 15. e4 {[%clk 0:02:10.9]}
15... N5f6 {[%clk 0:02:07.3]} 16. Bf4 {[%clk 0:02:03.6]} 16... Qb7 {[%clk
0:02:05.5]} 17. Nfe5 {[%clk 0:01:31.6]} 17... Nxe5 {[%clk 0:02:04.3]} 18. Nxe5
{[%clk 0:01:32.5]} 18... Rfd8 {[%clk 0:01:57.3]} 19. Nxc6 {[%clk 0:01:30.3]}
19... Qxc6 {[%clk 0:01:58.2]} 20. Bg5 {[%clk 0:01:18.8]} 20... e5 {[%clk
0:01:46]} 21. a5 {[%clk 0:01:04.9]} 21... b5 {[%clk 0:01:42.1]} 22. Qc3 {[%clk
0:00:57.1]} 22... Qd6 {[%clk 0:01:34.7]} 23. f4 {[%clk 0:00:35.6]} 23... Qxd3
{[%clk 0:01:05.4]} 24. Qxd3 {[%clk 0:00:26.6]} 24... Rxd3 {[%clk 0:01:04.3]} 25.
fxe5 {[%clk 0:00:27.2]} 25... Nd5 {[%clk 0:01:01.9]} 26. exd5 {[%clk 0:00:25.9]}
26... Bxg5 {[%clk 0:01:01.9]} 27. Rd1 {[%clk 0:00:24.4]} 27... Rxd1+ {[%clk
0:00:55.6]} 28. Rxd1 {[%clk 0:00:24.2]} 28... Be3+ {[%clk 0:00:55.7]} 29. Kf1
{[%clk 0:00:24.5]} 29... Bd4 {[%clk 0:00:56.4]} 30. b4 {[%clk 0:00:23.5]} 30...
Re8 {[%clk 0:00:49.6]} 31. bxc5 {[%clk 0:00:20.1]} 31... Bxc5 {[%clk 0:00:50.5]}
32. d6 {[%clk 0:00:19.4]} 32... Bb4 {[%clk 0:00:49.6]} 33. d7 {[%clk 0:00:16.9]}
33... Rd8 {[%clk 0:00:49.8]} 34. Bb7 {[%clk 0:00:14.1]} 34... Bxa5 {[%clk
0:00:50.1]} 35. Bxa6 {[%clk 0:00:14.4]} 35... b4 {[%clk 0:00:50.8]} 36. Bb5
{[%clk 0:00:05.9]} 36... Bc7 {[%clk 0:00:49.6]} 37. Ba4 {[%clk 0:00:04.4]} 37...
Bxe5 {[%clk 0:00:49]} 38. Rd5 {[%clk 0:00:04.2]} 38... Bc3 {[%clk 0:00:44.5]}
39. Ke2 {[%clk 0:00:04.3]} 39... Kf8 {[%clk 0:00:44.8]} 40. Kd3 {[%clk
0:00:04.6]} 40... Ke7 {[%clk 0:00:45.3]} 41. Rc5 {[%clk 0:00:02.4]} 41... Bf6
{[%clk 0:00:37.2]} 42. Rc4 {[%clk 0:00:02.5]} 42... b3 {[%clk 0:00:34.5]} 43.
Re4+ {[%clk 0:00:02.4]} 43... Kd6 {[%clk 0:00:35.1]} 44. Rb4 {[%clk 0:00:01.7]}
44... b2 {[%clk 0:00:34.6]} 45. Kc2 {[%clk 0:00:02.3]} 45... h5 {[%clk
0:00:32.2]} 46. Rb6+ {[%clk 0:00:02.3]} 46... Ke7 {[%clk 0:00:32.2]} 47. Rb3
{[%clk 0:00:02.3]} 47... g6 {[%clk 0:00:30.1]} 48. Re3+ {[%clk 0:00:02.5]} 48...
Kf8 {[%clk 0:00:28.7]} 49. Rf3 {[%clk 0:00:03.4]} 49... Be5 {[%clk 0:00:27]} 50.
Kb1 {[%clk 0:00:03.8]} 50... Ke7 {[%clk 0:00:26.9]} 51. Re3 {[%clk 0:00:04]}
51... f6 {[%clk 0:00:27.1]} 52. Rf3 {[%clk 0:00:03.9]} 52... Ra8 {[%clk
0:00:23.7]} 53. Ra3 {[%clk 0:00:01.4]} 53... g5 {[%clk 0:00:18.9]} 54. Ra2
{[%clk 0:00:01.7]} 54... Ra7 {[%clk 0:00:16.5]} 55. Ra3 {[%clk 0:00:01.7]} 55...
Rc7 {[%clk 0:00:15.2]} 56. Ka2 {[%clk 0:00:01.2]} 56... Rc1 {[%clk 0:00:14.3]}
0-1